bitfinex/quotes_SOLUSD_20220307
["timestamp","ask_amount","ask_price","bid_price","bid_amount"]
[1646669122652,7.43205659,85.551,85.477,6.097]
[1646669122653,6.0,85.55,85.477,6.097]
[1646669122855,43.23235591,85.548,85.478,6.0]
[1646669123053,11.847,85.547,85.48,17.5428]
[1646669123355,11.847,85.547,85.481,12.097]
[1646669123554,11.847,85.547,85.481,6.097]
[1646669124153,0.25,85.546,85.481,5.847]
[1646669124354,5.847,85.545,85.475,24.1568]
[1646669124576,6.25,85.544,85.475,24.1568]
[1646669124777,5.847,85.543,85.475,24.1568]
[1646669125178,6.0,85.544,85.476,5.847]
[1646669125379,6.0,85.545,85.476,5.847]
[1646669125577,11.847,85.546,85.477,6.25]
[1646669125779,11.847,85.546,85.478,5.847]
[1646669125984,11.847,85.546,85.48,70.06]
[1646669125985,5.847,85.546,85.48,70.06]
[1646669126180,43.23235591,85.548,85.5,17.5353]
[1646669126380,43.23235591,85.548,85.501,0.25]
[1646669126581,5.847,85.554,85.501,0.25]
[1646669126980,1.2320435,85.555,85.503,70.06]
[1646669127180,1.2320435,85.555,85.505,0.36634857]
[1646669127480,1.2320435,85.555,85.512,0.36634857]
[1646669127680,1.2320435,85.555,85.513,75.905]
[1646669127880,1.2320435,85.555,85.514,6.61634857]
[1646669128081,1.2320435,85.555,85.515,5.845]
[1646669128281,1.2320435,85.555,85.516,6.25]
[1646669128881,1.2320435,85.555,85.516,0.25]
[1646669129281,1.2320435,85.555,85.511,0.36634857]
[1646669129482,1.2320435,85.555,85.511,6.25]
[1646669130082,1.2320435,85.555,85.511,0.25]
[1646669130282,1.2320435,85.555,85.52,17.5349]
[1646669130481,1.2320435,85.555,85.521,6.25]
[1646669131581,1.2320435,85.555,85.522,5.845]
[1646669131781,1.2320435,85.555,85.523,6.25]
[1646669132382,1.2320435,85.555,85.523,0.25]
[1646669132681,0.58703418,85.589,85.524,105.0]
[1646669132883,0.58703418,85.589,85.526,0.30127546]
[1646669133082,0.58703418,85.589,85.525,76.31]
[1646669133083,0.58703418,85.589,85.532,116.7]
[1646669133282,0.58703418,85.589,85.541,186.76]
[1646669133483,0.58703418,85.589,85.543,70.06]
[1646669133684,0.58703418,85.589,85.545,0.30127546]
[1646669133881,0.58703418,85.589,85.544,6.25]
[1646669134283,0.58703418,85.589,85.544,0.25]
[1646669134482,0.58703418,85.589,85.543,6.0]
[1646669134682,2.83613526,85.588,85.511,59.4214]
[1646669134982,41.62687861,85.587,85.511,59.4214]
[1646669135184,0.25,85.586,85.511,53.4214]
[1646669135482,9.08613526,85.586,85.511,5.843]
[1646669135683,8.68013526,85.585,85.511,5.843]
[1646669135882,16.93,85.58,85.511,5.843]
[1646669136082,6.0,85.579,85.511,5.843]
[1646669136288,122.794,85.578,85.479,23.8761]
[1646669136483,171.2652,85.577,85.48,47.5784]
[1646669136683,0.25,85.576,85.48,47.5784]
[1646669136883,47.24599659,85.574,85.48,47.5784]
[1646669137087,17.5437,85.56,85.48,65.1223]
[1646669137388,40.1160611,85.558,85.48,65.1223]
[1646669137584,5.846,85.557,85.481,6.0]
[1646669137984,8.68213526,85.557,85.481,6.0]
[1646669138184,8.68213526,85.557,85.5,17.5423]
[1646669138584,8.68213526,85.557,85.481,6.0]
[1646669138787,0.25,85.556,85.481,6.0]
[1646669138984,5.846,85.555,85.481,6.0]
[1646669139184,0.25,85.554,85.48,47.5784]
[1646669139385,34.4756,85.55,85.48,65.1247]
[1646669139586,5.846,85.549,85.48,65.1247]
[1646669139786,5.846,85.549,85.481,0.25]
[1646669139987,2.83613526,85.548,85.481,0.25]
[1646669140189,5.846,85.547,85.481,0.25]
[1646669140388,5.846,85.547,85.47,17.5483]
[1646669140389,17.5475,85.54,85.47,17.5483]
[1646669140587,2.83613526,85.548,85.47,17.5483]
[1646669140588,16.93,85.53,85.471,6.0]
[1646669141389,19.76613526,85.53,85.471,6.0]
[1646669141588,16.93,85.53,85.48,17.546]
[1646669141788,16.93,85.53,85.481,6.0]
[1646669141990,16.93,85.53,85.482,0.25]
[1646669142390,39.25623721,85.538,85.482,0.25]
[1646669142592,5.847,85.537,85.49,17.5446]
[1646669142791,5.847,85.537,85.491,6.25]
[1646669142991,1.58505659,85.55,85.492,70.06]
[1646669143190,5.846,85.558,85.491,122.95]
[1646669143191,1.58505659,85.556,85.494,70.06]
[1646669143394,1.58505659,85.55,85.495,6.25]
[1646669143591,1.58505659,85.551,85.497,70.06]
[1646669143794,1.58505659,85.558,85.501,186.76]
[1646669143995,1.58505659,85.568,85.511,116.7]
[1646669144194,1.58505659,85.571,85.513,116.7]
[1646669144392,1.58505659,85.576,85.522,70.06]
[1646669144593,1.58505659,85.582,85.523,76.31]
[1646669145094,1.58505659,85.582,85.53,17.5295]
[1646669145294,1.58505659,85.582,85.531,6.25]
[1646669145694,1.58505659,85.585,85.531,6.25]
[1646669145994,1.58505659,85.585,85.531,0.25]
[1646669146195,1.58505659,85.586,85.541,186.76]
[1646669146395,1.58505659,85.586,85.543,70.06]
[1646669146597,0.58703418,85.589,85.544,6.25]
[1646669146795,1.57795159,85.593,85.546,186.76]
[1646669147097,3.17081662,85.617,85.55,204.2879]
[1646669147295,3.17081662,85.617,85.552,186.76]
[1646669147499,3.17081662,85.617,85.554,186.76]
[1646669147698,3.17081662,85.636,85.556,70.06]
[1646669147896,6.35674472,85.636,85.562,70.06]
[1646669148097,6.35674472,85.636,85.563,76.31]
[1646669148298,3.17081662,85.637,85.57,17.5209]
[1646669148499,9.01081662,85.638,85.571,6.25]
[1646669148798,6.35674472,85.637,85.572,0.25]
[1646669148998,6.35674472,85.637,85.572,70.31]
[1646669149201,6.35674472,85.637,85.573,76.06]
[1646669149398,6.35674472,85.637,85.58,17.524]
[1646669149600,5.84,85.643,85.581,6.0]
[1646669149800,16.93,85.64,85.581,6.0]
[1646669150000,3.17081662,85.649,85.581,6.0]
[1646669150200,3.17081662,85.651,85.554,116.7]
[1646669150500,3.17081662,85.651,85.553,6.0]
[1646669150501,34.62018199,85.648,85.59,17.5224]
[1646669150701,16.93,85.65,85.591,6.25]
[1646669150900,3.17081662,85.651,85.591,6.25]
[1646669151688,3.17081662,85.655,85.603,70.06]
[1646669151884,3.17081662,85.655,85.605,70.06]
[1646669152087,3.17081662,85.655,85.606,6.25]
[1646669152287,6.35587152,85.661,85.607,6.0]
[1646669152485,5.839,85.678,85.608,0.25]
[1646669152686,5.838,85.679,85.606,0.25]
[1646669152888,2.83613526,85.677,85.606,0.25]
[1646669153291,34.26553889,85.675,85.606,0.25]
[1646669153488,34.26553889,85.675,85.61,17.5175]
[1646669153688,34.26553889,85.675,85.611,6.25]
[1646669154292,5.838,85.679,85.613,70.06]
[1646669154488,5.838,85.679,85.621,186.76]
[1646669154688,5.837,85.688,85.623,70.06]
[1646669154888,5.837,85.697,85.625,70.06]
[1646669155100,33.763,85.7,85.627,70.06]
[1646669155389,47.15763579,85.697,85.629,70.06]
[1646669155590,47.15763579,85.697,85.64,17.5104]
[1646669155788,6.0,85.696,85.641,70.31]
[1646669155989,6.0,85.696,85.641,0.25]
[1646669156892,5.836,85.699,85.641,70.06]
[1646669157092,5.836,85.699,85.643,70.06]
[1646669157289,5.836,85.699,85.644,6.25]
[1646669157491,16.833,85.7,85.644,6.25]
[1646669158390,16.833,85.7,85.644,0.25]
[1646669158590,16.833,85.7,85.635,0.25]
[1646669158792,0.25,85.699,85.623,6.0]
[1646669158992,5.836,85.698,85.612,6.0]
[1646669159191,106.25,85.697,85.612,6.0]
[1646669159392,5.837,85.696,85.601,6.0]
[1646669159589,6.25,85.695,85.601,6.0]
[1646669159792,16.93,85.69,85.601,6.0]
[1646669159991,44.48872827,85.688,85.601,6.0]
[1646669160190,5.838,85.687,85.602,70.06]
[1646669160391,44.48872827,85.688,85.603,76.06]
[1646669160594,30.68728944,85.687,85.61,17.5163]
[1646669160791,30.68728944,85.687,85.611,6.0]
[1646669160989,33.5234247,85.687,85.612,0.25]
[1646669161190,44.48872827,85.688,85.612,0.25]
[1646669161191,2.83613526,85.686,85.612,0.25]
[1646669161393,2.83613526,85.686,85.612,70.31]
[1646669161595,2.83613526,85.686,85.613,76.06]
[1646669161793,2.83613526,85.686,85.614,6.25]
[1646669162192,16.93,85.69,85.614,6.25]
[1646669162395,16.93,85.69,85.614,0.25]
[1646669162396,5.837,85.689,85.614,0.25]
[1646669162595,38.18434395,85.688,85.614,0.25]
[1646669162792,38.18434395,85.688,85.605,6.0]
[1646669162793,5.837,85.687,85.606,0.25]
[1646669162993,17.5196,85.68,85.606,0.25]
[1646669163203,16.93,85.67,85.606,0.25]
[1646669163494,45.62739784,85.669,85.606,0.25]
[1646669164693,45.62739784,85.669,85.6,465.0]
[1646669164694,17.5239,85.66,85.6,125.45258953]
[1646669164894,16.93,85.65,85.6,125.45258953]
[1646669165095,116.7,85.639,85.508,49.2073]
[1646669165293,0.16388059,85.629,85.496,17.4348]
[1646669165496,5.843,85.628,85.497,116.7]
[1646669165715,6.25,85.627,85.508,70.06]
[1646669165994,45.65328763,85.626,85.51,70.06]
[1646669166197,0.25,85.625,85.512,70.06]
[1646669166394,16.93,85.62,85.518,186.76]
[1646669166598,16.93,85.62,85.52,70.06]
[1646669166796,100.0,85.632,85.535,116.7]
[1646669167002,16.93,85.64,85.552,70.06]
[1646669167199,16.93,85.64,85.554,70.06]
[1646669167399,16.93,85.64,85.57,17.5237]
[1646669167598,16.93,85.64,85.571,6.09]
[1646669167797,16.93,85.64,85.572,70.06]
[1646669168000,16.93,85.64,85.573,6.09]
[1646669168198,16.93,85.64,85.574,0.25]
[1646669168399,16.93,85.64,85.575,5.84]
[1646669168600,16.93,85.64,85.576,0.25]
[1646669168798,16.93,85.64,85.574,0.25]
[1646669169403,16.93,85.64,85.575,5.84]
[1646669169607,69.7111,85.659,85.574,0.25]
[1646669169608,69.7111,85.659,85.576,0.25]
[1646669169800,69.7111,85.659,85.582,70.06]
[1646669170000,46.1757,85.659,85.6,17.5173]
[1646669170201,16.93,85.67,85.602,0.34763895]
[1646669170403,16.93,85.67,85.601,0.25]
[1646669170602,116.7,85.667,85.601,0.25]
[1646669170812,45.05472427,85.668,85.601,0.25]
[1646669171002,5.838,85.667,85.601,0.25]
[1646669171203,0.25,85.666,85.587,0.25]
[1646669171404,5.839,85.665,85.588,5.839]
[1646669171601,0.25,85.664,85.589,0.25]
[1646669171802,16.93,85.65,85.589,0.25]
[1646669172010,36.98717743,85.649,85.589,0.25]
[1646669172405,36.98717743,85.649,85.59,5.839]
[1646669172601,36.98717743,85.649,85.591,6.25]
[1646669172802,36.98717743,85.649,85.591,0.25]
[1646669173222,5.839,85.648,85.591,0.25]
[1646669173425,116.95,85.647,85.553,70.06]
[1646669173625,11.841,85.646,85.554,12.091]
[1646669173824,116.95,85.645,85.554,12.091]
[1646669174026,116.7,85.629,85.554,12.091]
[1646669174227,35.30700295,85.629,85.554,12.091]
[1646669174624,1.236475,85.618,85.554,12.091]
[1646669175026,1.236475,85.618,85.554,11.841]
[1646669175526,1.236475,85.618,85.554,6.0]
[1646669175726,1.236475,85.618,85.552,6.0]
[1646669175927,14.04,85.61,85.552,6.0]
[1646669176127,36.57936282,85.609,85.552,6.0]
[1646669176328,36.57936282,85.609,85.53,17.5335]
[1646669176530,36.57936282,85.609,85.531,12.093]
[1646669176728,36.57936282,85.609,85.532,6.0]
[1646669176929,36.57936282,85.609,85.533,76.153]
[1646669177129,36.57936282,85.609,85.534,6.0]
[1646669177333,36.57936282,85.609,85.54,17.5328]
[1646669177530,36.57936282,85.609,85.541,12.091]
[1646669177729,36.57936282,85.609,85.542,6.25]
[1646669177928,36.57936282,85.609,85.543,5.841]
[1646669178130,36.57936282,85.609,85.544,6.25]
[1646669178334,14.04,85.61,85.55,17.5311]
[1646669178529,14.04,85.61,85.551,12.091]
[1646669178730,14.04,85.61,85.552,6.25]
[1646669178929,14.04,85.61,85.553,5.841]
[1646669179231,14.04,85.61,85.554,6.25]
[1646669179429,116.7,85.608,85.554,0.25]
[1646669180331,116.7,85.608,85.523,6.091]
[1646669180529,42.20119623,85.609,85.53,17.5349]
[1646669180730,42.20119623,85.609,85.531,12.093]
[1646669181330,36.35819623,85.609,85.531,12.093]
[1646669181532,36.35819623,85.609,85.532,22.673]
[1646669181732,36.35819623,85.609,85.533,12.093]
[1646669181931,36.35819623,85.609,85.533,6.093]
[1646669182132,36.35819623,85.609,85.55,17.5307]
[1646669182332,36.35819623,85.609,85.551,6.091]
[1646669183632,36.35819623,85.609,85.551,5.841]
[1646669184233,36.35819623,85.609,85.56,17.5303]
[1646669184432,14.04,85.61,85.56,17.5303]
[1646669185035,14.04,85.61,85.561,0.25]
[1646669185236,5.841,85.617,85.57,17.528]
[1646669185432,5.841,85.617,85.561,0.25]
[1646669185433,38.23273123,85.617,85.571,0.25]
[1646669185634,38.23273123,85.617,85.562,5.841]
[1646669185834,38.23273123,85.617,85.563,6.25]
[1646669186034,38.23273123,85.617,85.564,5.841]
[1646669186233,38.23273123,85.617,85.565,6.25]
[1646669186437,38.23273123,85.617,85.566,5.841]
[1646669186634,1.236475,85.618,85.567,6.25]
[1646669186834,1.236475,85.618,85.568,5.841]
[1646669187035,1.236475,85.618,85.569,0.25]
[1646669187236,1.236475,85.618,85.57,5.841]
[1646669187535,1.236475,85.618,85.571,0.25]
[1646669187739,41.65065605,85.618,85.572,5.841]
[1646669187938,41.65065605,85.618,85.573,0.25]
[1646669189137,41.65065605,85.618,85.561,0.25]
[1646669189540,41.65065605,85.618,85.57,17.5277]
[1646669189737,41.65065605,85.618,85.571,0.25]
[1646669190740,41.65065605,85.618,85.56,17.5298]
[1646669191038,41.65065605,85.618,85.561,0.25]
[1646669191940,41.65065605,85.618,85.57,17.5282]
[1646669192139,41.65065605,85.618,85.571,0.25]
[1646669192340,1.236475,85.618,85.571,0.25]
[1646669192539,1.236475,85.618,85.571,6.25]
[1646669192738,1.236475,85.618,85.572,70.35281027]
[1646669192943,1.236475,85.618,85.581,70.06]
[1646669193145,3.13031016,85.676,85.589,70.06]
[1646669193341,6.35388605,85.68,85.599,70.06]
[1646669193541,6.35388605,85.68,85.59,6.25]
[1646669193542,46.72119007,85.682,85.602,0.47669172]
[1646669193740,46.72119007,85.682,85.604,0.47669172]
[1646669193939,46.72119007,85.682,85.604,6.25]
[1646669194140,46.72119007,85.682,85.61,17.5121]
[1646669194342,5.837,85.693,85.611,6.25]
[1646669194540,8.96731016,85.695,85.611,6.25]
[1646669194739,6.35318246,85.692,85.611,6.25]
[1646669194938,5.837,85.691,85.611,0.25]
[1646669195139,6.35318246,85.69,85.611,0.25]
[1646669195341,40.03079092,85.692,85.607,0.25]
[1646669195542,5.837,85.691,85.607,0.25]
[1646669195940,5.837,85.691,85.63,17.514]
[1646669196140,5.837,85.691,85.631,6.25]
[1646669196540,14.04,85.69,85.631,6.25]
[1646669196740,5.836,85.689,85.631,0.25]
[1646669197239,5.836,85.689,85.621,6.25]
[1646669197640,31.5565,85.69,85.621,6.25]
[1646669197840,167.46055481,85.688,85.621,6.25]
[1646669198044,116.7,85.669,85.605,46.9045]
[1646669198241,17.5225,85.67,85.605,46.9045]
[1646669198442,44.54505331,85.669,85.605,46.9045]
[1646669199243,44.54505331,85.669,85.61,17.5195]
[1646669199444,44.54505331,85.669,85.611,0.25]
[1646669200245,44.54505331,85.669,85.62,17.5173]
[1646669200447,44.54505331,85.669,85.621,0.25]
[1646669201046,24.2867,85.686,85.621,0.25]
[1646669201247,24.2867,85.686,85.63,17.5153]
[1646669201546,14.04,85.69,85.631,0.25]
[1646669201746,16.833,85.7,85.631,6.25]
[1646669202045,16.833,85.7,85.632,0.36128102]
[1646669202444,16.833,85.7,85.64,17.5132]
[1646669202648,16.833,85.7,85.641,6.61128102]
[1646669203247,16.833,85.7,85.642,6.0]
[1646669203445,16.833,85.7,85.643,0.25]
[1646669203647,5.836,85.699,85.641,0.25]
[1646669204446,16.833,85.7,85.65,17.5102]
[1646669204647,16.833,85.7,85.651,0.25]
[1646669206147,16.833,85.7,85.641,0.25]
[1646669206348,116.7,85.699,85.641,0.25]
[1646669206546,122.536,85.698,85.596,46.2313]
[1646669206748,17.5166,85.69,85.61,58.3841]
[1646669206949,38.87400783,85.689,85.61,58.3841]
[1646669207150,5.837,85.696,85.62,17.5178]
[1646669207551,5.837,85.699,85.621,70.06]
[1646669207755,31.552,85.71,85.63,58.3706]
[1646669207950,14.04,85.71,85.631,6.0]
[1646669208151,41.21317753,85.704,85.623,6.0]
[1646669208355,41.21317753,85.704,85.64,17.5112]
[1646669208650,8.96631016,85.734,85.641,6.0]
[1646669208651,14.04,85.72,85.641,6.0]
[1646669208851,31.5502,85.72,85.641,6.0]
[1646669209250,116.7,85.719,85.642,0.25]
[1646669209456,5.836,85.706,85.65,17.5091]
[1646669209650,44.7550208,85.702,85.651,0.25]
[1646669210855,44.7550208,85.702,85.642,0.25]
[1646669211953,116.7,85.699,85.642,0.25]
[1646669212154,2.83613526,85.699,85.642,0.25]
[1646669212353,2.83613526,85.699,85.632,0.25]
[1646669212556,2.83613526,85.698,85.624,22.8994]
[1646669212755,116.7,85.696,85.624,22.8994]
[1646669212956,116.7,85.696,85.583,70.06]
[1646669213156,116.7,85.689,85.63,17.5158]
[1646669213360,116.7,85.687,85.63,17.5158]
[1646669213556,116.7,85.687,85.6,58.3904]
[1646669213757,116.7,85.687,85.601,6.0]
[1646669213957,116.7,85.685,85.601,6.0]
[1646669214156,116.7,85.683,85.601,6.0]
[1646669214358,116.7,85.679,85.601,6.0]
[1646669214978,119.53613526,85.679,85.601,6.0]
[1646669215179,119.53613526,85.679,85.61,17.5195]
[1646669215681,116.7,85.679,85.611,6.0]
[1646669215880,116.7,85.679,85.6,58.3904]
[1646669216079,14.04,85.68,85.601,6.25]
[1646669216281,14.04,85.68,85.62,17.5161]
[1646669216478,45.62435947,85.688,85.621,0.25]
[1646669216878,51.46135947,85.688,85.621,0.25]
[1646669217281,168.16135947,85.688,85.621,0.25]
[1646669217479,162.32435947,85.688,85.621,0.25]
[1646669218081,5.837,85.687,85.621,0.25]
[1646669219082,116.7,85.686,85.621,0.25]
[1646669219283,116.7,85.679,85.621,0.25]
[1646669219582,116.7,85.677,85.612,0.25]
[1646669219881,116.7,85.673,85.612,0.25]
[1646669220082,116.7,85.669,85.612,0.25]
[1646669220482,14.04,85.67,85.612,0.25]
[1646669220682,116.7,85.669,85.612,0.25]
[1646669220880,116.7,85.669,85.613,5.838]
[1646669221084,116.7,85.669,85.614,6.25]
[1646669221282,116.7,85.669,85.615,5.838]
[1646669221480,122.7,85.668,85.616,0.25]
[1646669221682,122.7,85.668,85.617,5.838]
[1646669221881,122.7,85.668,85.618,0.25]
[1646669222683,122.7,85.668,85.611,24.7342]
[1646669223083,122.7,85.668,85.601,5.838]
[1646669223283,116.7,85.666,85.577,17.264]
[1646669223484,116.7,85.664,85.578,6.0]
[1646669223686,116.7,85.649,85.578,6.0]
[1646669223884,47.91116035,85.647,85.58,17.5259]
[1646669224082,6.0,85.646,85.581,6.0]
[1646669224286,6.0,85.646,85.582,6.09]
[1646669224483,6.0,85.646,85.583,6.0]
[1646669224684,6.0,85.646,85.584,6.09]
[1646669225685,141.2695,85.668,85.59,17.5235]
[1646669225884,24.5695,85.668,85.592,70.06]
[1646669226084,24.5695,85.668,85.593,76.62909984]
[1646669226387,24.5695,85.668,85.595,0.31909984]
[1646669226684,41.99196539,85.667,85.596,5.838]
[1646669226985,41.99196539,85.667,85.597,6.25]
[1646669227183,41.99196539,85.667,85.598,5.838]
[1646669227384,41.99196539,85.667,85.599,6.25]
[1646669227584,41.99196539,85.667,85.6,5.838]
[1646669227884,41.99196539,85.667,85.601,6.25]
[1646669228083,41.99196539,85.667,85.61,17.5136]
[1646669228284,41.99196539,85.667,85.611,12.088]
[1646669228684,41.99196539,85.667,85.611,6.25]
[1646669228986,41.99196539,85.667,85.611,0.25]
[1646669229184,41.99196539,85.667,85.604,0.25]
[1646669229588,41.99196539,85.667,85.605,5.838]
[1646669229786,24.5695,85.668,85.62,17.5178]
[1646669229986,14.04,85.68,85.622,0.29660109]
[1646669230286,47.1939,85.689,85.623,5.837]
[1646669230487,6.35217176,85.688,85.624,0.25]
[1646669230686,6.35217176,85.688,85.625,5.837]
[1646669230885,45.99622724,85.688,85.626,0.25]
[1646669231088,45.99622724,85.688,85.63,17.5158]
[1646669231286,47.1939,85.689,85.625,5.837]
[1646669231287,47.1939,85.689,85.631,0.25]
[1646669231593,16.833,85.7,85.631,0.25]
[1646669231788,16.833,85.7,85.632,0.34218031]
[1646669231988,16.833,85.7,85.633,70.06]
[1646669232190,16.833,85.7,85.64,17.5105]
[1646669232387,16.833,85.7,85.641,6.25]
[1646669232991,16.833,85.7,85.641,0.25]
[1646669233489,16.833,85.7,85.65,17.5117]
[1646669233690,16.833,85.7,85.651,0.25]
[1646669234791,16.833,85.7,85.65,17.5111]
[1646669235090,16.833,85.7,85.651,0.25]
[1646669235292,16.833,85.7,85.642,0.25]
[1646669235792,16.833,85.7,85.66,17.5093]
[1646669236291,16.833,85.7,85.661,0.25]
[1646669236493,3.13031016,85.726,85.663,105.0]
[1646669236696,3.13031016,85.735,85.665,0.45225073]
[1646669236893,3.13031016,85.735,85.664,6.25]
[1646669236894,3.13031016,85.735,85.671,0.60246716]
[1646669237096,23.334,85.755,85.671,0.60246716]
[1646669237097,23.334,85.755,85.672,186.76]
[1646669237302,23.334,85.755,85.674,0.60246716]
[1646669237697,23.334,85.755,85.674,6.60246716]
[1646669237900,23.334,85.755,85.68,17.5033]
[1646669238199,6.0,85.754,85.681,6.25]
[1646669238800,6.0,85.754,85.682,6.0]
[1646669238998,6.0,85.754,85.69,17.5012]
[1646669239206,5.833,85.769,85.691,6.25]
[1646669239405,5.833,85.769,85.692,23.3678]
[1646669239602,23.547,85.799,85.693,6.25]
[1646669239902,23.547,85.799,85.71,17.4961]
[1646669240101,23.547,85.799,85.711,6.25]
[1646669240305,5.83,85.798,85.711,6.25]
[1646669240502,5.83,85.798,85.712,0.26221881]
[1646669240702,8.66613526,85.798,85.711,0.25]
[1646669240909,17.5,85.79,85.702,6.0]
[1646669241109,14.04,85.78,85.702,6.0]
[1646669241308,37.92143987,85.778,85.702,6.0]
[1646669241509,12.081,85.777,85.702,6.0]
[1646669241713,0.25,85.776,85.702,6.0]
[1646669241909,3.08613526,85.776,85.702,6.0]
[1646669242109,8.83613526,85.775,85.702,6.0]
[1646669242308,12.081,85.774,85.703,0.25]
[1646669242509,6.25,85.774,85.703,0.25]
[1646669243008,5.831,85.773,85.703,0.25]
[1646669243209,0.25,85.772,85.679,23.386]
[1646669243409,31.5446,85.77,85.66,17.5065]
[1646669243610,6.083,85.769,85.661,6.0]
[1646669243809,6.083,85.769,85.651,47.3939]
[1646669243810,116.7,85.768,85.651,47.3939]
[1646669244012,116.7,85.766,85.711,0.03]
[1646669244213,100.0,85.755,85.711,0.03]
[1646669244409,14.04,85.74,85.711,0.03]
[1646669244610,17.5094,85.75,85.651,47.3939]
[1646669244611,14.04,85.73,85.651,47.3939]
[1646669245214,22.5555,85.738,85.651,47.3939]
[1646669245410,22.5555,85.738,85.651,71.50265198]
[1646669245611,14.04,85.77,85.651,71.50265198]
[1646669245823,14.04,85.79,85.662,116.7]
[1646669246013,5.832,85.789,85.671,70.06]
[1646669246215,5.832,85.799,85.673,70.06]
[1646669246515,14.04,85.8,85.676,0.41899243]
[1646669246717,5.831,85.819,85.691,74.37190531]
[1646669246912,14.04,85.82,85.693,0.41899243]
[1646669247112,116.7,85.817,85.693,0.41899243]
[1646669247313,100.0,85.807,85.692,6.25]
[1646669247512,5.83,85.806,85.693,47.122]
[1646669247714,100.0,85.807,85.695,5.27388455]
[1646669247915,2.83613526,85.805,85.7,17.4946]
[1646669248115,2.83613526,85.805,85.701,6.25]
[1646669248315,69.73942832,85.804,85.702,70.06]
[1646669248514,14.04,85.8,85.703,6.25]
[1646669248718,5.33,85.799,85.704,29.6336]
[1646669248917,33.32797478,85.799,85.704,23.3836]
[1646669249116,2.83613526,85.798,85.705,6.25]
[1646669249319,5.83,85.797,85.705,6.25]
[1646669249515,0.12927705,85.796,85.641,116.7]
[1646669249715,5.832,85.795,85.62,14.04]
[1646669249915,175.47,85.79,85.61,14.04]
[1646669250216,17.5118,85.75,85.639,6.0896849]
[1646669250417,14.04,85.74,85.64,23.2002]
[1646669250616,5.833,85.739,85.64,23.2002]
[1646669251017,36.49377671,85.739,85.64,23.2002]
[1646669251217,16.81,85.73,85.64,23.2002]
[1646669251521,16.81,85.73,85.64,40.7077]
[1646669251718,2.83613526,85.748,85.64,157.4077]
[1646669251922,16.81,85.78,85.64,174.2177]
[1646669252121,29.1018,85.778,85.641,32.02256018]
[1646669252521,40.23187869,85.777,85.642,25.77256018]
[1646669252718,122.7,85.776,85.643,6.0]
[1646669252918,5.833,85.775,85.643,6.0]
[1646669253216,116.7,85.773,85.642,25.77256018]
[1646669253417,0.25,85.774,85.65,17.5054]
[1646669253418,16.81,85.76,85.65,17.5054]
[1646669253621,34.67823962,85.759,85.651,30.3975]